bitfinex-derivatives/quotes_SOLF0:USTF0_20250125
["timestamp","ask_amount","ask_price","bid_price","bid_amount"]
[1737788175362,0.02774363,247.15,247.11,6.07406183]
[1737788176759,0.02774363,247.15,247.13,6.04660961]
[1737788179562,0.02774363,247.15,247.11,6.07406183]
[1737788179757,0.02774363,247.15,247.11,0.02745222]
[1737788179966,4.047,247.13,247.11,0.02745222]
[1737788180565,4.07444363,247.15,247.11,0.02745222]
[1737788180767,4.07444363,247.15,247.11,6.07406183]
[1737788181068,0.02774363,247.15,247.11,6.07406183]
[1737788181262,0.02774363,247.15,247.13,6.04660961]
[1737788182869,0.02774363,247.15,247.14,1.3476]
[1737788184770,6.04660961,247.27,247.14,1.3476]
[1737788184967,6.04660961,247.27,247.19,6.04660961]
[1737788185270,10.09140961,247.27,247.19,6.04660961]
[1737788185769,0.02991732,247.25,247.21,0.02792268]
[1737788186170,0.02991732,247.25,247.21,6.07453229]
[1737788188573,0.02991732,247.25,247.23,6.04660961]
[1737788189774,6.04660961,247.33,247.24,1.2853]
[1737788189974,6.04660961,247.35,247.27,6.04660961]
[1737788190976,6.04660961,247.35,247.29,0.02693046]
[1737788191179,4.0436,247.34,247.29,0.02693046]
[1737788191477,6.04660961,247.35,247.29,0.02693046]
[1737788192075,4.0438,247.33,247.29,0.02693046]
[1737788193678,4.0439,247.32,247.29,0.02693046]
[1737788194576,10.09080961,247.3,247.29,0.02693046]
[1737788194780,6.04660961,247.3,247.16,7.43160961]
[1737788194982,6.04660961,247.23,247.16,1.385]
[1737788195582,6.04660961,247.23,247.16,8.76550961]
[1737788195785,4.0457,247.21,247.16,8.76550961]
[1737788195983,4.0457,247.21,247.17,0.03069866]
[1737788196489,4.0459,247.2,247.17,0.03069866]
[1737788196887,0.02668026,247.22,247.17,0.03069866]
[1737788197386,4.0458,247.21,247.17,0.03069866]
[1737788197583,0.02668026,247.22,247.17,0.03069866]
[1737788198183,4.0461,247.19,247.17,0.03069866]
[1737788198386,10.09270961,247.19,247.17,9.866e-05]
[1737788198982,4.0461,247.19,247.17,9.866e-05]
[1737788199883,10.09270961,247.19,247.17,9.866e-05]
[1737788201486,4.0461,247.19,247.17,9.866e-05]
[1737788202484,0.02668026,247.22,247.17,9.866e-05]
[1737788202684,0.02668026,247.22,247.18,6.04660961]
[1737788202886,0.02668026,247.22,247.17,9.866e-05]
[1737788203583,4.0457,247.21,247.17,9.866e-05]
[1737788206791,0.02668026,247.22,247.17,9.866e-05]
[1737788207493,0.02668026,247.22,247.21,6.04660961]
[1737788209593,0.02668026,247.22,247.19,6.04660961]
[1737788210893,0.02668026,247.22,247.17,9.866e-05]
[1737788210894,6.04660961,247.21,247.17,9.866e-05]
[1737788211097,6.04660961,247.19,247.17,9.866e-05]
[1737788212295,10.09280961,247.19,247.17,9.866e-05]
[1737788212893,4.0462,247.19,247.17,9.866e-05]
[1737788217500,4.0462,247.18,247.17,9.866e-05]
[1737788218495,0.02668026,247.22,247.17,9.866e-05]
[1737788218700,4.0458,247.21,247.17,9.866e-05]
[1737788219004,0.02668026,247.22,247.17,9.866e-05]
[1737788219206,4.0459,247.2,247.17,9.866e-05]
[1737788220699,4.0462,247.18,247.17,9.866e-05]
[1737788223208,4.046,247.2,247.17,9.866e-05]
[1737788224105,4.07228026,247.22,247.17,9.866e-05]
[1737788226411,0.02668026,247.22,247.17,9.866e-05]
[1737788226610,0.02668026,247.22,247.17,1.35489866]
[1737788227009,0.02668026,247.22,247.18,4.0461]
[1737788227206,0.02668026,247.22,247.17,10.78325675]
[1737788228113,0.02668026,247.22,247.2,4.0457]
[1737788228312,0.02668026,247.22,247.17,13.50325675]
[1737788235713,0.02668026,247.22,247.21,6.03029108]
[1737788236618,4.07218026,247.22,247.21,6.03029108]
[1737788238017,0.02668026,247.22,247.21,6.03029108]
[1737788239421,4.0444,247.29,247.21,6.03029108]
[1737788239616,4.0444,247.29,247.26,6.03029108]
[1737788243817,0.0307806,247.3,247.26,6.03029108]
[1737788244116,4.0446,247.28,247.26,6.03029108]
[1737788244419,0.0307806,247.3,247.26,6.03029108]
[1737788244615,0.0307806,247.3,247.25,0.02648901]
[1737788244616,0.0307806,247.3,247.28,6.03029108]
[1737788245121,4.0750806,247.3,247.28,6.03029108]
[1737788251229,0.0307806,247.3,247.28,6.03029108]
[1737788251527,4.0444,247.29,247.28,6.03029108]
[1737788254026,4.0749806,247.3,247.28,6.03029108]
[1737788254525,0.0307806,247.3,247.28,6.03029108]
[1737788258329,4.0749806,247.3,247.28,6.03029108]
[1737788258936,0.0307806,247.3,247.28,6.03029108]
[1737788259233,4.0444,247.29,247.28,6.03029108]
[1737788263533,0.0307806,247.3,247.28,6.03029108]
[1737788270047,4.0749806,247.3,247.28,6.03029108]
[1737788271246,1.3039,247.44,247.29,4.0443]
[1737788271247,4.0433,247.36,247.29,4.0443]
[1737788271548,4.0433,247.36,247.34,6.03029108]
[1737788288667,6.03029108,247.43,247.34,6.03029108]
[1737788289369,4.0425,247.41,247.36,6.03029108]
[1737788289568,1.3614,247.48,247.4,6.03029108]
[1737788289869,6.03029108,247.51,247.44,6.03029108]
[1737788290063,6.03029108,247.53,247.44,6.03029108]
[1737788290271,28.39606637,247.55,247.48,6.03029108]
[1737788290769,4.0409,247.5,247.49,0.03020083]
[1737788291165,22.36577529,247.55,247.49,0.03020083]
[1737788291377,22.36577529,247.55,247.52,6.03029108]
[1737788291571,22.36577529,247.55,247.54,6.03029108]
[1737788291765,36.52542086,247.57,247.54,6.03029108]
[1737788291961,36.52542086,247.57,247.56,6.03029108]
[1737788295176,6.03029108,247.58,247.54,0.02875051]
[1737788295475,4.041,247.5,247.48,6.03029108]
[1737788296175,4.0407,247.52,247.48,6.03029108]
[1737788297678,4.0407,247.52,247.5,6.03029108]
[1737788299381,6.03029108,247.58,247.5,6.03029108]
[1737788299676,6.03029108,247.6,247.52,6.03029108]
[1737788299974,32.45179326,247.69,247.56,6.03029108]
[1737788299975,4.0391,247.62,247.56,6.03029108]
[1737788300176,6.03029108,247.66,247.58,6.03029108]
[1737788300883,4.0394,247.6,247.58,6.03029108]
[1737788301583,8.72929108,247.68,247.58,6.03029108]
[1737788301881,4.0387,247.64,247.61,6.03029108]
[1737788302180,6.03029108,247.63,247.53,6.03029108]
[1737788302381,6.03029108,247.58,247.5,6.03029108]
[1737788302977,4.04,247.56,247.52,6.03029108]
[1737788303178,6.03029108,247.6,247.52,6.03029108]
[1737788303378,0.03029421,247.58,247.54,0.03088013]
[1737788304084,4.04,247.56,247.54,0.03088013]
[1737788311284,0.03029421,247.58,247.54,6.06117121]
[1737788312591,0.03029421,247.58,247.56,6.03029108]
[1737788320689,32.45179326,247.69,247.56,6.03029108]
[1737788320898,6.03029108,247.7,247.62,6.03029108]
[1737788321699,4.038,247.69,247.62,6.03029108]
[1737788321899,6.03029108,247.7,247.64,0.02550277]
[1737788322196,2.6183,247.77,247.64,0.02550277]
[1737788322197,6.03029108,247.66,247.64,0.02550277]
[1737788322699,10.06869108,247.66,247.64,0.02550277]
[1737788325093,4.0385,247.65,247.64,0.02550277]
[1737788328697,4.0395,247.59,247.53,6.03029108]
[1737788328898,4.47712108,247.61,247.53,6.03029108]
[1737788330000,4.06927613,247.59,247.55,0.02704829]
[1737788330204,4.06927613,247.59,247.55,6.05733937]
[1737788331794,0.02977613,247.59,247.55,6.05733937]
[1737788335505,0.02977613,247.59,247.57,6.03029108]
[1737788338905,0.02977613,247.59,247.57,10.07009108]
[1737788340212,4.0379,247.69,247.58,1.3417]
[1737788340413,4.0379,247.69,247.65,6.03029108]
[1737788340712,6.03029108,247.71,247.63,6.03029108]
[1737788341211,4.0383,247.67,247.61,6.03029108]
[1737788341412,6.03029108,247.69,247.65,0.02592438]
[1737788341707,4.0383,247.66,247.65,0.02592438]
[1737788346317,4.0382,247.67,247.65,0.02592438]
[1737788348910,4.0383,247.66,247.65,0.02592438]
[1737788355415,4.0383,247.66,247.65,2.438e-05]
[1737788355621,6.03029108,247.66,247.55,0.26235]
[1737788355914,6.03029108,247.59,247.55,0.26235]
[1737788356422,4.0398,247.57,247.55,0.26235]
[1737788356621,4.0398,247.57,247.55,0.29103439]
[1737788361124,0.02882171,247.59,247.55,0.29103439]
[1737788363323,10.09861279,247.59,247.55,0.29103439]
[1737788363924,6.05911279,247.59,247.55,0.29103439]
[1737788364125,4.0397,247.58,247.55,0.29103439]
[1737788365820,10.07029108,247.56,247.55,0.29103439]
[1737788367128,4.04,247.56,247.55,0.29103439]
[1737788367329,0.02882171,247.59,247.55,0.29103439]
[1737788367529,4.0397,247.58,247.55,0.29103439]
[1737788370531,10.07029108,247.56,247.55,0.29103439]
[1737788372728,6.03029108,247.56,247.44,6.03029108]
[1737788373038,6.03029108,247.49,247.43,1.3683]
[1737788373640,6.03029108,247.44,247.34,139.80836372]
[1737788373830,6.03029108,247.41,247.34,139.80836372]
[1737788374032,6.03029108,247.38,247.37,0.02972523]
[1737788375731,4.0434,247.35,247.27,1.305]
[1737788375939,6.03029108,247.33,247.26,6.03029108]
[1737788376639,6.03029108,247.35,247.26,6.03029108]
[1737788376841,0.02728098,247.32,247.27,0.02952061]
[1737788377741,0.02728098,247.32,247.28,6.03029108]
[1737788377947,0.02728098,247.32,247.3,6.03029108]
[1737788379836,0.02728098,247.32,247.27,4.07412061]
[1737788383740,0.02728098,247.32,247.27,0.02952061]
[1737788391151,4.0443,247.3,247.27,0.02952061]
[1737788396551,4.07128098,247.32,247.27,0.02952061]
[1737788399555,0.02728098,247.32,247.27,0.02952061]
[1737788399849,9.41519771,247.3,247.18,1.2739]
[1737788400053,4.0454,247.23,247.18,1.2739]
[1737788400254,9.41519771,247.24,247.11,9.41519771]
[1737788400450,9.41519771,247.21,247.12,1.2739]
[1737788400649,9.41519771,247.18,247.02,9.41519771]
[1737788400951,9.41519771,247.18,247.03,139.80836372]
[1737788401150,0.03048505,247.12,247.08,0.02984949]
[1737788401452,0.03048505,247.12,247.08,9.4450472]
[1737788401652,4.0459,247.2,247.08,4.07764949]
[1737788401948,9.41519771,247.18,247.03,141.17646372]
[1737788402650,4.0461,247.19,247.06,9.41519771]
[1737788402948,0.02786525,247.13,247.09,9.41519771]
[1737788403157,9.41519771,247.24,247.09,9.41519771]
[1737788403350,0.02778396,247.13,247.09,9.4417954]
[1737788403655,9.41519771,247.27,247.12,9.41519771]
[1737788404746,0.0258475,247.22,247.17,0.03092085]
[1737788410054,0.0258475,247.22,247.2,4.0458]
[1737788410460,0.0258475,247.22,247.17,0.03092085]
[1737788412754,0.0258475,247.22,247.17,4.07712085]
[1737788413659,6.03409644,247.2,247.17,0.03092085]
[1737788414462,6.03409644,247.18,247.17,0.03092085]
[1737788415966,4.0465,247.16,247.1,5.3436]
[1737788416166,6.03409644,247.12,247.1,5.3436]
[1737788416569,6.03409644,247.12,247.1,1.2961]
[1737788417575,6.03409644,247.12,247.09,0.02701174]
[1737788417772,6.03409644,247.1,247.09,0.02701174]
[1737788418477,6.03409644,247.1,247.03,4.0486]
[1737788418772,6.03409644,247.09,247.03,4.0486]
[1737788419666,6.03409644,247.09,247.04,0.02586995]
[1737788420972,6.03409644,247.09,246.98,2.7]
[1737788420973,6.03409644,247.05,246.93,6.03409644]
[1737788421166,6.03409644,247.0,246.94,1.2993]
[1737788421371,6.03409644,246.98,246.94,1.2993]
[1737788421672,9.44579962,247.01,246.94,1.2993]
[1737788422069,0.02630832,247.0,246.95,0.03058672]
[1737788425576,4.0494,246.99,246.86,4.0513]
[1737788425881,1.2878,247.04,246.77,3.9613]
[1737788426179,1.2878,247.04,246.87,4.0512]
[1737788426590,4.0492,247.0,246.89,4.0508]
[1737788426879,0.03059367,246.93,246.88,0.02717852]
[1737788427079,1.2878,247.04,246.78,0.74411297]
[1737788427279,1.2878,247.04,246.95,4.0499]
[1737788427676,0.03109452,247.02,246.97,0.02661841]
[1737788430081,0.03109452,247.02,246.97,4.07621841]
[1737788430578,0.03109452,247.02,246.97,0.02661841]
[1737788431676,0.03109452,247.02,246.97,4.07611841]
[1737788432680,0.03109452,247.02,246.97,0.02661841]
[1737788433886,4.07989452,247.02,246.97,0.02661841]
[1737788435483,4.0493,246.99,246.97,0.02661841]
[1737788436586,9.9493,246.99,246.97,0.02661841]
[1737788440485,4.0497,246.97,246.92,4.0504]
[1737788441489,7.31024087,246.97,246.92,4.07705845]
[1737788441687,4.04,246.96,246.92,4.07705845]
[1737788442189,4.04,246.96,246.92,0.02665845]
[1737788443689,4.04,246.96,246.94,4.0501]
[1737788443984,7.91,246.96,246.92,0.02665845]
[1737788444297,11.9599,246.96,246.92,0.02665845]
[1737788444497,7.91,246.96,246.92,0.02665845]
[1737788446096,4.05,246.95,246.92,0.02665845]
[1737788446496,8.28,246.95,246.92,0.02665845]
[1737788448597,11.51,246.95,246.92,0.02665845]
[1737788450696,7.46,246.95,246.92,0.02665845]
[1737788452109,7.46,246.95,246.93,4.0502]
[1737788453796,7.8882,246.95,246.94,4.0501]
[1737788453996,3.9966,246.95,246.94,4.0501]
[1737788454297,7.91,246.96,246.94,4.0501]
[1737788454899,11.14,246.96,246.94,4.0501]
[1737788455204,11.14,246.96,246.93,4.0502]
[1737788455503,26.0,246.96,246.93,4.0502]
[1737788458706,26.0,246.96,246.92,0.02665845]
[1737788460604,26.0,246.96,246.92,4.07705845]
[1737788460810,26.0,246.96,246.92,0.02665845]
[1737788461103,26.0,246.96,246.79,139.80836372]
[1737788461601,4.0506,246.91,246.79,139.80836372]
[1737788461805,26.0,246.96,246.79,139.80836372]
[1737788462001,4.0508,246.9,246.79,139.80836372]
[1737788462199,26.0,246.96,246.79,139.80836372]
[1737788462403,0.02624758,246.87,246.82,0.02651247]
[1737788463108,0.02624758,246.87,246.82,4.07851247]
[1737788464110,0.02624758,246.87,246.83,4.0519]
[1737788466112,0.02624758,246.87,246.84,4.0517]
[1737788467213,4.33624758,246.87,246.84,4.0517]
[1737788467813,4.33624758,246.87,246.82,0.02651247]
[1737788468111,4.33624758,246.87,246.85,4.0516]
[1737788470011,4.33624758,246.87,246.82,0.02651247]
[1737788470809,4.33624758,246.87,246.84,4.0517]
[1737788471012,4.33624758,246.87,246.82,0.02651247]
[1737788471910,4.05,246.86,246.82,0.02651247]
[1737788472114,4.05,246.86,246.85,4.0516]
[1737788473712,4.05,246.86,246.82,0.02651247]
[1737788473911,4.05,246.86,246.83,4.0518]
[1737788474110,4.05,246.86,246.82,0.02651247]
[1737788474417,4.05,246.86,246.82,4.07851247]
[1737788476719,8.98,246.86,246.82,0.02651247]
[1737788476918,8.98,246.86,246.83,4.0519]
[1737788477117,12.22,246.86,246.83,4.0519]
[1737788478621,21.03,246.86,246.83,4.0519]
[1737788479222,21.03,246.86,246.82,0.02651247]
[1737788479521,21.03,246.86,246.85,4.0516]
[1737788484722,21.03,246.86,246.83,4.0518]
[1737788485223,21.03,246.86,246.82,0.02651247]
[1737788485421,21.03,246.86,246.82,4.07851247]
[1737788485820,16.98,246.86,246.82,0.02651247]
[1737788487022,4.05,246.85,246.82,0.02651247]
[1737788487322,4.05,246.85,246.83,4.0519]
[1737788488322,4.05,246.85,246.82,0.02651247]
[1737788489423,9.07,246.85,246.82,0.02651247]
[1737788490126,13.1217,246.85,246.82,0.02651247]
[1737788490824,9.07,246.85,246.82,0.02651247]
[1737788494723,9.07,246.85,246.82,4.07851247]
[1737788495328,12.31,246.85,246.82,4.07851247]
[1737788495730,12.31,246.85,246.83,4.0518]
[1737788495930,15.55,246.85,246.83,4.0518]
[1737788497531,15.55,246.85,246.82,0.02651247]
[1737788497727,15.55,246.85,246.84,4.0517]
[1737788502828,10.5,246.86,246.84,4.0517]
[1737788503335,0.02624758,246.87,246.86,4.0514]
[1737788504537,23.69,246.89,246.82,2.72651247]
[1737788504735,23.69,246.89,246.88,4.0511]
[1737788504937,19.4714,246.89,246.88,4.0511]
[1737788506136,13.333,246.89,246.88,4.0511]
[1737788506332,7.233e-05,246.91,246.82,2.72651247]
[1737788506635,7.233e-05,246.91,246.9,4.0508]
[1737788509031,7.233e-05,246.91,246.9,4.79464155]
[1737788509639,7.233e-05,246.91,246.9,4.79464152]
[1737788510942,7.233e-05,246.91,246.9,4.0508]
[1737788511341,7.233e-05,246.91,246.88,0.02678397]
[1737788511641,7.233e-05,246.91,246.82,139.80836372]
[1737788512445,7.233e-05,246.91,246.78,2.7]
[1737788512645,7.233e-05,246.91,246.83,4.0519]
[1737788513446,7.233e-05,246.91,246.82,0.02872598]
[1737788513746,7.233e-05,246.91,246.84,4.0517]
[1737788514346,7.233e-05,246.91,246.82,4.08072598]
[1737788514747,7.233e-05,246.91,246.82,0.02872598]
[1737788515144,7.233e-05,246.91,246.85,4.0515]
[1737788516848,7.233e-05,246.91,246.82,0.02872598]
[1737788518651,4.05077233,246.91,246.82,0.02872598]
[1737788518951,7.233e-05,246.91,246.82,0.02872598]
[1737788519347,7.233e-05,246.91,246.86,4.0514]
[1737788520246,7.233e-05,246.91,246.82,0.02872598]
[1737788520644,4.27007233,246.91,246.82,0.02872598]
[1737788521651,4.27007233,246.91,246.89,4.0509]
[1737788522655,9.04007233,246.91,246.89,4.0509]
[1737788526364,9.04007233,246.91,246.88,0.02859885]
[1737788526665,9.04007233,246.91,246.78,2.7]
[1737788526855,9.04,246.91,246.78,2.7]
[1737788527565,4.0511,246.88,246.78,4.0526]
[1737788527765,0.02778777,246.87,246.82,0.02957627]
[1737788528261,0.02778777,246.87,246.73,139.80836372]
[1737788528662,4.0516,246.86,246.74,4.0532]
[1737788528863,3.26778777,246.87,246.73,139.80836372]
[1737788529162,3.24,246.87,246.73,139.80836372]
[1737788529360,0.03078867,246.82,246.78,0.02787151]
[1737788529565,0.03078867,246.82,246.74,4.0533]
[1737788530363,0.03078867,246.82,246.7,20.0]
[1737788530558,2.72428867,246.82,246.74,0.02860372]
[1737788533564,2.72428867,246.82,246.76,4.053]
[1737788534965,2.72428867,246.82,246.77,4.0528]
[1737788535369,2.72428867,246.82,246.74,0.02860372]
[1737788535763,2.72428867,246.82,246.78,4.0527]
[1737788535963,2.72428867,246.82,246.74,0.02860372]
[1737788536869,2.72428867,246.82,246.77,4.0528]
[1737788537068,2.72428867,246.82,246.74,0.02860372]
[1737788537463,2.72428867,246.82,246.8,4.0523]
[1737788537970,6.84428867,246.82,246.8,4.0523]
[1737788538166,4.15078867,246.82,246.8,4.0523]
[1737788540070,4.15078867,246.82,246.76,4.053]
[1737788540271,4.15078867,246.82,246.74,0.02860372]
[1737788543374,4.15078867,246.82,246.74,0.77294605]
[1737788544174,4.15078867,246.82,246.8,4.0524]
[1737788547871,9.07078867,246.82,246.8,4.0524]
[1737788549072,2.71988867,246.82,246.8,4.0524]
[1737788549272,8.867e-05,246.82,246.81,0.74411055]
[1737788549969,8.867e-05,246.82,246.81,0.74410911]
[1737788550174,8.867e-05,246.82,246.8,4.0524]
[1737788550875,3.24008867,246.82,246.8,4.0524]
[1737788551073,8.867e-05,246.82,246.81,0.74414465]
[1737788551472,8.867e-05,246.83,246.81,0.74414465]
[1737788551669,8.867e-05,246.83,246.82,4.0521]
[1737788552575,0.02592495,246.84,246.82,4.0521]
[1737788552771,5.80441362,246.85,246.79,0.03059738]
[1737788552978,1.362e-05,246.85,246.84,4.0517]
[1737788553176,1.362e-05,246.85,246.84,4.79574905]
[1737788554576,8.46,246.87,246.84,4.79574905]
[1737788554775,2.988e-05,246.87,246.86,4.0514]
[1737788555073,2.988e-05,246.87,246.86,4.79544905]
[1737788555279,2.988e-05,246.87,246.86,4.0514]
[1737788555477,2.988e-05,246.87,246.86,4.79537216]
[1737788557178,2.988e-05,246.87,246.86,0.74397216]
[1737788558682,2.988e-05,246.87,246.85,6.7516]
[1737788561580,12.76,246.89,246.86,0.74397083]
[1737788561783,4.983e-05,246.89,246.86,0.74397083]
[1737788561982,4.983e-05,246.89,246.87,1.3567]
[1737788562285,4.983e-05,246.89,246.88,0.74397083]
[1737788562884,4.74003305,246.91,246.9,4.0508]
[1737788563086,1.362,247.04,246.9,0.74397083]
[1737788563285,1.362,247.04,246.91,0.74397083]
[1737788563586,1.362,247.04,246.92,0.74397083]
[1737788563787,1.362,247.04,246.94,4.05]
[1737788563988,1.712,247.04,246.94,4.05]
[1737788564187,0.02660503,247.01,246.97,0.02673539]
[1737788564380,0.02660503,247.01,246.97,6.77633539]
[1737788564786,0.02660503,247.01,246.98,4.0494]
[1737788565694,0.02660503,247.01,246.99,4.0493]
[1737788565989,8.94,247.04,246.97,2.72673539]
[1737788566289,8.94,247.04,246.98,0.74357295]
[1737788566589,8.94,247.04,246.99,4.0492]
[1737788566783,8.94,247.04,246.97,2.72673539]
[1737788566989,8.94,247.04,246.98,0.74356481]
[1737788567191,0.02850793,247.03,246.98,0.74356481]
[1737788567488,6.64310793,247.04,246.98,0.85726481]
[1737788567687,6.64310793,247.04,246.99,0.74356481]
[1737788567882,6.64310793,247.04,247.02,4.0488]
[1737788568082,6.64310793,247.04,247.03,0.74356481]
[1737788569285,6.64310793,247.04,247.03,2.7]
[1737788572390,6.64310793,247.04,246.97,0.02673539]
[1737788572583,6.64310793,247.04,246.98,2.7]
[1737788576795,6.64310793,247.04,246.99,4.0492]
[1737788577695,6.64310793,247.04,247.0,0.7435844]
[1737788577996,6.64310793,247.04,247.02,4.0487]
[1737788578194,3.87,247.04,247.02,4.0487]
[1737788578396,3.87,247.04,246.98,6.7493]
[1737788578595,3.87,247.04,246.99,0.74358327]
[1737788579396,3.87,247.04,246.98,2.7]
[1737788579695,3.87,247.04,246.99,0.74359931]
[1737788579894,3.87,247.04,247.0,4.0491]
[1737788580097,3.87,247.04,246.98,2.7]
[1737788581798,7.6,247.04,246.98,2.7]
[1737788582100,7.6,247.04,246.98,6.7493]
[1737788584698,7.6,247.04,247.02,4.0488]
[1737788585804,7.6,247.04,247.0,4.049]
[1737788586305,7.6,247.04,246.98,2.7]
[1737788586504,7.6,247.04,246.98,6.7494]
[1737788588208,7.6,247.04,246.98,2.7]
[1737788588404,7.6,247.04,247.02,4.0488]
[1737788590408,1.2757,247.04,247.03,0.74351276]
[1737788590704,0.03047315,247.06,247.04,4.0485]
[1737788590898,0.03047315,247.06,247.05,0.74351276]
[1737788592406,0.03047315,247.06,247.04,4.0485]
[1737788592709,0.03047315,247.06,247.05,0.74340957]
[1737788595909,0.03047315,247.06,247.04,4.0485]
[1737788596112,0.03047315,247.06,247.05,0.743398]
[1737788597714,0.03047315,247.06,247.05,0.7433111]
[1737788599016,0.03047315,247.06,247.05,4.7916111]
[1737788601021,0.03047315,247.06,247.05,0.74331255]
[1737788601222,0.03047315,247.06,247.05,3.44331255]
[1737788602924,0.03047315,247.06,247.05,3.44340124]
[1737788606529,0.03047315,247.06,247.05,2.7]
[1737788606823,0.03047315,247.06,247.05,3.44339145]
[1737788609122,0.03047315,247.06,247.05,7.49169145]
[1737788613531,7.315e-05,247.06,247.05,7.49169145]
[1737788613725,7.315e-05,247.08,247.05,3.44339145]
[1737788613923,7.315e-05,247.08,247.07,4.048]
[1737788614127,7.315e-05,247.08,247.07,4.79139145]
[1737788616830,0.03007888,247.1,247.09,4.0476]
[1737788617030,0.03007888,247.1,247.09,4.79099145]
[1737788618832,0.03007888,247.1,247.09,4.79077458]
[1737788619034,1.3062,247.17,247.09,4.79077458]
[1737788619235,1.3062,247.17,247.1,0.74317458]
[1737788619737,1.3062,247.17,247.12,4.0471]
[1737788619935,1.3062,247.17,247.13,0.74317458]
[1737788620235,1.33524125,247.17,247.13,0.77328595]
[1737788621437,1.33524125,247.17,247.13,0.03011137]
[1737788621938,1.33524125,247.17,247.13,0.77327527]
[1737788622137,1.33524125,247.17,247.13,0.03011137]
[1737788622437,0.02904125,247.17,247.14,4.0468]
[1737788623435,0.02904125,247.17,247.13,0.03011137]
[1737788624733,0.02904125,247.17,247.13,0.77326929]
[1737788624936,0.02904125,247.17,247.14,0.74312398]
[1737788625232,0.02904125,247.17,247.13,0.03011137]
[1737788625233,0.02904125,247.17,247.13,4.07711137]
[1737788625437,0.02904125,247.17,247.14,0.74311542]
[1737788626137,0.02904125,247.17,247.13,4.07711137]
[1737788626338,0.02904125,247.17,247.14,0.74311473]
[1737788627338,0.02904125,247.17,247.13,0.03011137]
[1737788630433,0.02904125,247.17,247.13,2.71011137]
[1737788634244,4.0466,247.16,247.09,9.84602723]
[1737788634438,4.0466,247.16,247.09,2.68]
[1737788635345,4.0466,247.16,247.1,0.02611179]
[1737788635545,4.0466,247.16,247.09,2.68]
[1737788635845,4.0466,247.16,247.06,139.80836372]
[1737788636047,4.0466,247.16,247.07,3.42331164]
[1737788636344,4.0466,247.16,247.07,2.68]
[1737788636544,4.0466,247.16,247.05,9.84602723]
[1737788636744,4.0467,247.15,247.09,0.03037656]
[1737788636944,4.0467,247.15,247.06,13.2693631]
[1737788636945,4.0467,247.15,247.06,12.52602723]
[1737788637139,2.5762,247.2,247.06,12.52602723]
[1737788637339,4.0465,247.17,247.06,2.68]
[1737788637741,2.5762,247.2,247.06,2.68]
[1737788637939,6.6221,247.2,247.07,0.74333292]
[1737788638142,0.0255862,247.15,247.11,0.0301424]
[1737788652356,0.0255862,247.15,247.11,13.92346963]
[1737788653154,1.3626,247.19,247.11,4.0774424]
[1737788654053,1.3626,247.19,247.11,0.0301424]
[1737788654354,0.03061427,247.17,247.12,9.84602723]
[1737788655058,0.03061427,247.17,247.14,4.0468]
[1737788655250,0.03061427,247.17,247.13,9.84602723]
[1737788655957,0.03061427,247.17,247.14,9.84602723]
[1737788656661,0.03061427,247.17,247.12,9.84602723]
[1737788657057,0.03061427,247.17,247.13,9.84602723]
[1737788658166,0.03061427,247.17,247.16,4.0465]
[1737788658965,0.03061427,247.17,247.13,9.84602723]
[1737788659161,0.03061427,247.17,247.14,4.0467]
[1737788659488,0.03061427,247.17,247.14,13.89272723]
[1737788659765,0.03061427,247.17,247.14,4.0467]
[1737788659965,0.03061427,247.17,247.12,9.84602723]
[1737788660161,0.03061427,247.17,247.13,10.58920261]
[1737788660362,0.03061427,247.17,247.13,9.84602723]
[1737788660663,0.03061427,247.17,247.11,2.7101424]
[1737788661556,0.03061427,247.17,247.11,12.55616963]
[1737788661861,0.03061427,247.17,247.11,2.7101424]
[1737788663165,0.03061427,247.17,247.11,12.55616963]
[1737788663866,0.03061427,247.17,247.11,2.7101424]
[1737788666367,0.03061427,247.17,247.12,9.84602723]
[1737788668063,0.03061427,247.17,247.11,2.7101424]
[1737788670067,0.03061427,247.17,247.11,12.55616963]
[1737788670666,4.066,247.18,247.12,9.84602723]
[1737788671366,4.066,247.18,247.13,9.84602723]
[1737788671564,2.6765,247.18,247.13,9.84602723]
[1737788671868,2.70738782,247.18,247.13,9.84602723]
[1737788672365,2.70738782,247.18,247.14,9.84602723]
[1737788672763,2.70738782,247.18,247.12,9.84602723]
[1737788673266,2.70738782,247.18,247.13,9.84602723]
[1737788674363,2.70738782,247.18,247.11,6.7574424]
[1737788674364,2.70738782,247.18,247.14,9.84602723]
[1737788674667,2.70738782,247.18,247.12,9.84602723]
[1737788675266,2.70738782,247.18,247.13,9.84602723]